fUST/lending_fUST_20251117
["ID","MTS","AMOUNT","RATE_DAILY","PERIOD"]
[394188516,1763364646307,-151.0,0.00027397,7]
[394188517,1763364646316,-151.0,0.00027397,7]
[394188518,1763364646325,-151.0,0.00027397,7]
[394188519,1763364646335,-260.9568,0.00027397,7]
[394188520,1763364646344,-1468.53,0.000274,2]
[394188521,1763364646354,-1000.0,0.00027921,5]
[394188522,1763364646363,-155.859905,0.00028281,2]
[394188523,1763364646373,-1500.0,0.00028468,5]
[394188524,1763364646381,-500.0,0.00028493,2]
[394188525,1763364646390,-1000.0,0.00028853,30]
[394188526,1763364646399,-492.0,0.00028853,30]
[394188527,1763364646408,-1855.51592409,0.00029016,5]
[394188528,1763364646417,-312.0,0.00029227,2]
[394188529,1763364646427,-480.50154604,0.00029325,2]
[394188530,1763364646436,-500.0,0.00029589,2]
[394188531,1763364646445,-155.859905,0.00029972,2]
[394188532,1763364646455,-2000.0,0.0003,7]
[394188533,1763364646464,-500.0,0.00030684,2]
[394188534,1763364646473,-11611.38,0.000307,7]
[394188535,1763364646483,-339.0,0.00031227,2]
[394188536,1763364646491,-155.859905,0.00031662,2]
[394188537,1763364646501,-1000.0,0.00031738,30]
[394188538,1763364646510,-791.0,0.00031738,30]
[394188539,1763364646519,-5000.0,0.00031778,2]
[394188540,1763364646527,-500.0,0.0003178,2]
[394188541,1763364646536,-251.65,0.000318,7]
[394188542,1763364646545,-150.0,0.00031952,2]
[394188543,1763364646554,-500.0,0.00032467,7]
[394188544,1763364646563,-5000.0,0.000325,4]
[394188545,1763364646572,-1468.53,0.000328,2]
[394188546,1763364646581,-500.0,0.00032876,2]
[394188547,1763364646590,-151.0,0.00032877,31]
[394188549,1763364646598,-2838.45,0.00032877,10]
[394188550,1763364646607,-500.0,0.00032877,7]
[394188551,1763364646616,-509.47955205,0.00032877,7]
[394188552,1763364646626,-4999.0,0.00033,4]
[394188554,1763364646636,-366.0,0.00033227,120]
[394188555,1763364646645,-207.7,0.00033486,2]
[394188556,1763364646654,-5000.0,0.000335,4]
[394188557,1763364646663,-576.75070919,0.00033714,2]
[394188558,1763364646674,-253.89987463,0.00033972,2]
[394188559,1763364646683,-500.0,0.00034488,7]
[394188560,1763364646695,-1000.0,0.00034912,30]
[394188561,1763364646705,-1000.0,0.00034912,30]
[394188562,1763364646715,-156.0,0.00035,120]
[394188563,1763364646723,-2000.0,0.00035,7]
[394188564,1763364646735,-311.55,0.00035008,2]
[394188565,1763364646745,-393.0,0.00035227,120]
[394188566,1763364646754,-512.24870481,0.00035338,30]
[394188567,1763364646763,-379.79761708,0.00035488,2]
[394188568,1763364646773,-857.68578645,0.00035488,2]
[394188569,1763364646782,-3427.31240264,0.00035488,2]
[394188570,1763364646791,-5082.20113938,0.00035558,2]
[394188571,1763364646800,-5000.0,0.00036111,3]
[394188572,1763364646809,-415.4,0.0003653,2]
[394188573,1763364646819,-11611.38,0.000368,14]
[394188574,1763364646828,-251.65,0.000368,7]
[394188575,1763364646837,-500.0,0.000368,30]
[394188576,1763364646846,-1000.0,0.00036962,2]
[394188577,1763364646855,-1000.0,0.00036962,2]
[394188578,1763364646864,-1000.0,0.00036962,2]
[394188579,1763364646873,-1000.0,0.00036962,2]
[394188580,1763364646882,-1000.0,0.00036962,2]
[394188581,1763364646892,-151.0,0.00036962,2]
[394188582,1763364646901,-1000.0,0.00036962,2]
[394188583,1763364646910,-152.37021563,0.00036962,2]
[394188584,1763364646919,-1000.0,0.00036962,2]
[394188585,1763364646928,-1000.0,0.00036962,2]
[394188586,1763364646938,-989.99883952,0.00036962,2]
[394188587,1763364646946,-1535.0,0.00037,120]
[394188588,1763364646955,-500.0,0.00037023,30]
[394188589,1763364646964,-500.0,0.00037069,30]
[394188590,1763364646973,-420.0,0.00037227,120]
[394188591,1763364646982,-265.65,0.000376,30]
[394188592,1763364646991,-519.24,0.00038052,2]
[394188593,1763364647000,-1468.53,0.000383,14]
[394188594,1763364647075,-150.0,0.00038356,5]
[394188595,1763364647084,-390.66842919,0.00038379,2]
[394188596,1763364647093,-372.99045585,0.00038379,2]
[394188597,1763364647102,-671.38282053,0.00038379,2]
[394188598,1763364647111,-309.62085627,0.00038379,2]
[394188599,1763364647120,-557.31754128,0.00038379,2]
[394188600,1763364647129,-243.00511806,0.00038379,2]
[394188601,1763364647142,-313.80908019,0.00038379,2]
[394188602,1763364647154,-5376.66912376,0.00038394,2]
[394188603,1763364647163,-340.65567762,0.00038394,5]
[394188604,1763364647173,-282.22534444,0.00038394,30]
[394188605,1763364647183,-1000.0,0.00038403,90]
[394188606,1763364647193,-1000.0,0.00038403,90]
[394188607,1763364647202,-579.0,0.00038403,90]
[394188608,1763364647211,-499.3,0.00038428,30]
[394188609,1763364647222,-407.5630396,0.00038685,4]
[394188610,1763364647234,-3402.114146,0.00038975,2]
[394188611,1763364647244,-837.00259935,0.00039176,30]
[394188612,1763364647254,-500.0,0.00039177,5]
[394188613,1763364647264,-500.0,0.00039177,5]
[394188614,1763364647275,-500.0,0.00039177,5]
[394188615,1763364647284,-500.0,0.00039177,5]
[394188616,1763364647294,-1000.0,0.00039177,5]
[394188617,1763364647304,-500.0,0.00039177,5]
[394188618,1763364647314,-1000.0,0.00039177,5]
[394188619,1763364647324,-500.0,0.00039177,5]
[394188620,1763364647333,-1000.0,0.00039177,5]
[394188621,1763364647342,-500.0,0.00039177,5]
[394188622,1763364647352,-1000.0,0.00039177,5]
[394188623,1763364647361,-500.0,0.00039177,5]
[394188624,1763364647371,-1000.0,0.00039177,5]
[394188625,1763364647380,-500.0,0.00039177,5]
[394188626,1763364647390,-1000.0,0.00039177,5]
[394188627,1763364647400,-500.0,0.00039177,5]
[394188628,1763364647409,-1000.0,0.00039177,5]
[394188629,1763364647418,-500.0,0.00039177,5]
[394188630,1763364647427,-1000.0,0.00039177,5]
[394188631,1763364647437,-510.41686513,0.00039177,5]
[394188632,1763364647446,-1000.0,0.00039177,5]
[394188633,1763364647455,-1000.0,0.00039177,5]
[394188634,1763364647464,-1000.0,0.00039177,5]
[394188635,1763364647475,-1000.0,0.00039177,5]
[394188636,1763364647484,-1000.0,0.00039177,5]
[394188637,1763364647493,-250.0,0.00039178,5]
[394188638,1763364647503,-3402.114146,0.00039194,2]
[394188639,1763364647512,-447.0,0.00039227,120]
[394188640,1763364647522,-623.09,0.00039574,2]
[394188641,1763364647531,-3402.114146,0.00039603,2]
[394188642,1763364647540,-3402.114149,0.00039792,2]
[394188643,1763364647549,-13657.44995293,0.000398,60]
[394188644,1763364647559,-186.84208537,0.000399,120]
[394188645,1763364647568,-150.0,0.00039999,2]
[394188646,1763364647577,-150.0,0.00039999,15]
[394188647,1763364647586,-150.0,0.00039999,15]
[394188648,1763364647595,-2101.01,0.0004,120]
[394188649,1763364647604,-165.22064318,0.0004,120]
[394188650,1763364647613,-1000.0,0.0004,60]
[394188651,1763364647622,-1000.0,0.0004,60]
[394188652,1763364647631,-1000.0,0.0004,60]
[394188653,1763364647640,-346.41435785,0.0004,60]
[394188654,1763364647649,-400.67432439,0.0004,30]
[394188655,1763364647659,-2000.0,0.0004,21]
[394188656,1763364647670,-350.0,0.0004,5]
[394188657,1763364647680,-151.0,0.0004,60]
[394188658,1763364647690,-166.0,0.0004,14]
[394188659,1763364647702,-166.0,0.0004,14]
[394188660,1763364647711,-151.0,0.0004,14]
[394188661,1763364647721,-166.0,0.0004,14]
[394188662,1763364647731,-332.0,0.0004,14]
[394188663,1763364647741,-151.0,0.0004,14]
[394188664,1763364647751,-172.0,0.0004,14]
[394188665,1763364647760,-332.0,0.0004,14]
[394188666,1763364647772,-164.91139963,0.0004,14]
[394188667,1763364647781,-332.0,0.0004,14]
[394188668,1763364647791,-332.0,0.0004,14]
[394188669,1763364647800,-332.0,0.0004,14]
[394188670,1763364647808,-332.0,0.0004,14]
[394188671,1763364647817,-332.0,0.0004,14]
[394188672,1763364647827,-332.0,0.0004,14]
[394188673,1763364647836,-332.0,0.0004,14]
[394188674,1763364647847,-332.0,0.0004,14]
[394188675,1763364647855,-332.0,0.0004,14]
[394188676,1763364647864,-332.0,0.0004,14]
[394188677,1763364647872,-332.0,0.0004,14]
[394188678,1763364647881,-280.57090883,0.0004,14]
[394188679,1763364647891,-174.0,0.0004,14]
[394188680,1763364647900,-174.81240782,0.0004,14]
[394188681,1763364647909,-500.0,0.00040297,30]
[394188682,1763364647919,-274.204,0.00040329,57]
[394188683,1763364647928,-11611.38,0.000404,14]
[394188684,1763364647937,-5000.0,0.00040444,4]
[394188685,1763364647947,-251.65,0.000405,7]
[394188686,1763364647956,-500.0,0.00040596,30]
[394188687,1763364647966,-501.75223311,0.00040712,30]
[394188688,1763364647975,-450.0,0.00040822,5]
[394188689,1763364647986,-209.98713641,0.00041,120]
[394188690,1763364647995,-212.5779702,0.00041,120]
[394188691,1763364648005,-164.21721062,0.00041,120]
[394188692,1763364648015,-168.43073725,0.00041,120]
[394188693,1763364648024,-1468.53,0.00041,14]
[394188694,1763364648034,-500.0,0.00041096,120]
[394188695,1763364648043,-169.04,0.00041096,120]
[394188696,1763364648052,-154.97,0.00041096,120]
[394188697,1763364648061,-726.94,0.00041096,2]
[394188698,1763364648071,-474.0,0.00041227,120]
[394188699,1763364648081,-395.5698071,0.00041339,30]
[394188700,1763364648092,-500.0,0.0004137,120]
[394188701,1763364648102,-500.0,0.00041644,120]
[394188702,1763364648111,-550.0,0.00041644,10]
[394188703,1763364648120,-152.553203,0.000419,120]
[394188704,1763364648129,-500.0,0.00041918,120]
[394188705,1763364648138,-239.49341552,0.00042,120]
[394188706,1763364648148,-151.79,0.00042,2]
[394188707,1763364648157,-200.0,0.00042,120]
[394188708,1763364648166,-160.0,0.00042,120]
[394188709,1763364648175,-154.3526623,0.00042024,30]
[394188710,1763364648184,-164.3590142,0.00042024,30]
[394188711,1763364648194,-164.3590142,0.00042024,30]
[394188712,1763364648204,-155.859905,0.00042128,10]
[394188713,1763364648213,-500.0,0.00042192,120]
[394188714,1763364648223,-212.5779702,0.000422,120]
[394188715,1763364648232,-168.43073725,0.000422,120]
[394188716,1763364648242,-265.65,0.000422,30]
[394188717,1763364648252,-384.0,0.00042244,90]
[394188718,1763364648262,-395.5698071,0.00042298,30]
[394188719,1763364648271,-395.5698071,0.00042298,30]
[394188720,1763364648280,-254.023948,0.00042298,30]
[394188721,1763364648289,-155.859905,0.00042355,10]
[394188722,1763364648299,-500.0,0.00042466,120]
[394188723,1763364648308,-650.0,0.00042466,10]
[394188724,1763364648318,-490.97830735,0.00042473,4]
[394188725,1763364648327,-9394.54,0.00042545,13]
[394188726,1763364648337,-155.859905,0.00042583,10]
[394188727,1763364648346,-830.79,0.00042619,2]
[394188728,1763364648356,-500.0,0.0004274,120]
[394188729,1763364648365,-155.859905,0.0004281,10]
[394188730,1763364648374,-164.3590142,0.00042846,30]
[394188731,1763364648383,-164.3590142,0.00042846,30]
[394188732,1763364648392,-164.3590142,0.00042846,30]
[394188733,1763364648402,-330.2577585,0.00042846,30]
[394188734,1763364648411,-6643.18880543,0.00043,30]
[394188735,1763364648420,-287.12005232,0.00043,120]
[394188736,1763364648429,-500.0,0.00043,120]
[394188737,1763364648438,-160.0,0.00043,120]
[394188738,1763364648447,-395.436153,0.00043,120]
[394188739,1763364648456,-151.0,0.00043,120]
[394188740,1763364648466,-395.436153,0.00043,120]
[394188741,1763364648475,-395.436153,0.00043,120]
[394188742,1763364648485,-395.436153,0.00043,120]
[394188743,1763364648495,-151.0,0.00043,120]
[394188744,1763364648504,-151.0,0.00043,120]
[394188745,1763364648513,-151.0,0.00043,120]
[394188746,1763364648522,-151.0,0.00043,120]
[394188747,1763364648596,-500.0,0.00043014,120]
[394188748,1763364648605,-1468.53,0.000431,14]
[394188749,1763364648615,-251.65,0.000431,14]
[394188750,1763364648624,-7278.62,0.00043156,13]
[394188751,1763364648633,-501.0,0.00043227,120]
[394188752,1763364648642,-500.0,0.00043288,120]
[394188753,1763364648651,-750.0,0.00043288,10]
[394188754,1763364648661,-11611.38,0.000433,14]
[394188755,1763364648707,-239.199494,0.000433,120]
[394188756,1763364648717,-239.199494,0.000433,120]
[394188757,1763364648726,-151.0,0.000433,7]
[394188758,1763364648737,-151.0,0.000433,7]
[394188759,1763364648747,-239.199494,0.000433,120]
[394188760,1763364648757,-151.0,0.000433,7]
[394188761,1763364648766,-239.199494,0.000433,120]
[394188762,1763364648779,-270.281418,0.000433,120]
[394188763,1763364648789,-270.281418,0.000433,120]
[394188764,1763364648798,-270.281418,0.000433,120]
[394188765,1763364648808,-151.0,0.000433,120]
[394188766,1763364648817,-270.281418,0.000433,120]
[394188767,1763364648827,-151.0,0.000433,120]
[394188768,1763364648836,-151.0,0.000433,120]
[394188769,1763364648845,-151.0,0.000433,120]
[394188770,1763364648855,-151.0,0.000433,120]
[394188771,1763364648865,-151.0,0.000433,120]
[394188772,1763364648874,-320.156538,0.000433,120]
[394188773,1763364648884,-320.156538,0.000433,120]
[394188774,1763364648894,-3066.810049,0.000433,120]
[394188775,1763364648904,-320.156538,0.000433,120]
[394188776,1763364648913,-1863.66600345,0.000433,120]
[394188777,1763364649030,-1203.14404555,0.000433,120]
[394188778,1763364649040,-320.156538,0.000433,120]
[394188779,1763364649049,-3066.810049,0.000433,120]
[394188780,1763364649059,-1384.65985296,0.000433,120]
[394188781,1763364649221,-151.0,0.00027397,7]
[394188782,1763364649230,-151.0,0.00027397,7]
[394188783,1763364649239,-1682.15019604,0.000433,120]
[394188784,1763364649249,-151.0,0.000433,120]
[394188785,1763364649258,-535.97476,0.000433,120]
[394188786,1763364649267,-535.97476,0.000433,120]
[394188787,1763364649276,-535.97476,0.000433,120]
[394188788,1763364649285,-535.97476,0.000433,120]
[394188789,1763364649295,-151.0,0.000433,120]
[394188790,1763364649304,-151.0,0.000433,120]
[394188791,1763364649314,-4954.08460072,0.000435,120]
[394188792,1763364649669,2511.06562463,0.0001717,2]
[394188793,1763364649707,-115.84108135,0.0001717,2]
[394188794,1763364649717,-500.0,0.00017343,2]
[394188795,1763364649726,-500.0,0.00017343,2]
[394188796,1763364649735,-500.0,0.00017343,2]
[394188797,1763364649744,-500.0,0.00017343,2]
[394188798,1763364649754,-500.0,0.00017343,2]
[394188799,1763364649765,-500.0,0.00017343,2]
[394188800,1763364649842,-413.97252713,0.00017343,2]
[394188801,1763364649852,-500.0,0.00017343,2]
[394188802,1763364649861,-500.0,0.00017343,2]
[394188803,1763364649870,-500.0,0.00017343,2]
[394188804,1763364649879,-500.0,0.00017343,2]
[394188805,1763364649887,-500.0,0.00017343,2]
[394188806,1763364649896,-500.0,0.00017343,2]
[394188807,1763364649905,-423.45099256,0.00017343,2]
[394188808,1763364649914,-399.31248001,0.00017343,2]
[394188809,1763364649924,-500.0,0.00017343,2]
[394188810,1763364649932,-151.0,0.00027397,7]
[394188811,1763364649941,-151.0,0.00027397,7]
[394188812,1763364649950,-151.0,0.00027397,7]
[394188813,1763364649959,-151.0,0.00027397,7]
[394188814,1763364649969,-151.0,0.00027397,7]
[394188815,1763364649978,-151.0,0.00027397,7]
[394188816,1763364649987,-151.0,0.00027397,7]
[394188817,1763364649996,-249.414485,0.00027397,7]
[394188818,1763364650006,-4431.76,0.00032877,10]
[394188819,1763364650015,-500.0,0.00041096,31]
[394188820,1763364650025,-500.0,0.00041096,31]
[394188821,1763364650034,-500.0,0.00041096,31]
[394188822,1763364650043,-500.0,0.00041096,31]
[394188823,1763364650053,-500.0,0.00041096,31]
[394188824,1763364650062,-262.52310798,0.00041096,31]
[394188825,1763364650071,-500.0,0.00041096,31]
[394188826,1763364650080,-500.0,0.00041096,31]
[394188827,1763364650088,-500.0,0.00041096,31]
[394188828,1763364650098,-500.0,0.00041096,31]
[394188829,1763364650107,-500.0,0.00041096,31]
[394188830,1763364650116,-500.0,0.00041096,31]
[394188831,1763364650126,-500.0,0.00041096,31]
[394188832,1763364650135,-500.0,0.00041096,31]
[394188833,1763364650145,-500.0,0.00041096,31]
[394188834,1763364650154,-500.0,0.00041096,31]
[394188835,1763364650163,-500.0,0.00041096,31]
[394188836,1763364650171,-500.0,0.00041096,31]
[394188837,1763364650180,-500.0,0.00041096,31]
[394188838,1763364650190,-500.0,0.00041096,31]
[394188839,1763364650199,-500.0,0.00041096,31]
[394188840,1763364650209,-500.0,0.00041096,31]
[394188841,1763364650218,-500.0,0.00041096,31]
[394188842,1763364650228,-500.0,0.00041096,31]
[394188843,1763364650237,-500.0,0.00041096,31]
[394188844,1763364650246,-500.0,0.00041096,31]
[394188845,1763364650255,-151.0,0.00043,120]
[394188846,1763364650264,-151.0,0.00043,120]
[394188847,1763364650273,-151.0,0.00043,120]
[394188848,1763364650283,-11709.56568219,0.000435,120]
[394188849,1763364650292,-168.43073725,0.000435,120]
[394188850,1763364650301,-500.0,0.00043562,120]
[394188851,1763364650310,-890.03,0.00043809,13]
[394188852,1763364650319,-500.0,0.00043836,120]
[394188853,1763364650328,-39386.489312,0.000439,30]
[394188854,1763364966771,512.1915008,0.00016339,2]
[394188907,1763365223585,1257.0177963,0.00016322,2]
[394188909,1763365283356,371.242336,0.00013699,2]
[394188921,1763365363571,332.963884,0.00016197,2]
[394188922,1763365401354,-292.96273295,0.00016813,2]
[394188923,1763365405836,-429.53994372,0.00016813,2]
[394188924,1763365407443,-469.36203381,0.00016813,2]
[394188925,1763365409879,-308.11418997,0.00016813,2]
[394188926,1763365413126,-343.26002163,0.00016813,2]
[394188927,1763365413148,-183.86302215,0.00016889,2]
[394188929,1763365628153,-578.7134584,0.00016813,2]
[394188934,1763365769133,-158.11418997,0.00016772,2]
[394188935,1763365769153,-143.78921827,0.00016813,2]
[394188936,1763365769173,-525.81041348,0.00016872,2]
[394188937,1763365772087,-4611.80669727,0.00016872,2]
[394188938,1763365772238,-150.0,0.00016892,2]
[394188939,1763365772259,-469.36203381,0.000169,2]
[394188940,1763365772280,-300.0,0.0001697,2]
[394188941,1763365772304,-500.0,0.00016971,2]
[394188942,1763365772324,-269.27233251,0.00016971,2]
[394188943,1763365772347,-488.81249778,0.00016971,2]
[394188944,1763365772368,-500.0,0.00016971,2]
[394188945,1763365772388,-500.0,0.00016971,2]
[394188946,1763365772410,-500.0,0.00016971,2]
[394188947,1763365772434,-377.22237791,0.00016971,2]
[394188948,1763365774121,-14213.6676426,0.00016872,2]
[394188949,1763365791421,-514.71372287,0.00016872,2]
[394188950,1763365794219,-580.17956774,0.00016872,2]
[394188951,1763365796492,-300.0,0.00016872,2]
[394188952,1763365798148,-182.59904579,0.00016872,2]
[394188953,1763365798605,1237.7215568,0.0001598,2]
[394188954,1763365800270,-321.99243,0.00016872,2]
[394188955,1763365801873,-300.0,0.00016871,2]
[394188956,1763365801902,-291.16085053,0.00016872,2]
[394188957,1763365803406,-300.0,0.00016871,2]
[394188958,1763365803429,-300.0,0.00016871,2]
[394188959,1763365803451,-40.60865667,0.00016871,2]
[394188960,1763365805259,-202.63098235,0.00016871,2]
[394188961,1763365808201,-56.76036098,0.00016871,2]
[394188962,1763365808223,-243.23963902,0.00016871,2]
[394188963,1763365809840,-300.0,0.00016871,2]
[394188964,1763365811079,6165.5003786,0.00015973,2]
[394188965,1763365811455,-303.68934559,0.00016871,2]
[394188966,1763365813431,-353.07101539,0.00016871,2]
[394188967,1763365813456,-111.40813408,0.00016872,2]
[394188968,1763365816591,-255.70199774,0.00016872,2]
[394189030,1763365834261,-251.25739324,0.00016871,2]
[394189031,1763365834272,-285.50442647,0.00016871,2]
[394189032,1763365834282,-688.06557353,0.00016872,2]
[394189033,1763365834293,-1112.14381274,0.00016872,2]
[394189034,1763365834304,-522.668,0.00016872,2]
[394189045,1763365838199,-500.0,0.00016871,2]
[394189047,1763365838209,-500.0,0.00016871,2]
[394189049,1763365838218,-500.0,0.00016871,2]
[394189050,1763365838228,-500.0,0.00016871,2]
[394189051,1763365838237,-500.0,0.00016871,2]
[394189052,1763365838247,-500.0,0.00016871,2]
[394189053,1763365838256,-500.0,0.00016871,2]
[394189054,1763365838265,-500.0,0.00016871,2]
[394189055,1763365838353,-500.0,0.00016871,2]
[394189056,1763365838363,-500.0,0.00016871,2]
[394189057,1763365838373,-500.0,0.00016871,2]
[394189058,1763365838382,-500.0,0.00016871,2]
[394189059,1763365838391,-500.0,0.00016871,2]
[394189060,1763365838401,-500.0,0.00016871,2]
[394189061,1763365838411,-555.06501183,0.00016871,2]
[394189062,1763365838421,-500.0,0.00016871,2]
[394189063,1763365838433,-500.0,0.00016871,2]
[394189064,1763365838442,-500.0,0.00016871,2]
[394189065,1763365838452,-500.0,0.00016871,2]
[394189066,1763365838461,-500.0,0.00016871,2]
[394189067,1763365838470,-500.0,0.00016871,2]
[394189068,1763365838480,-500.0,0.00016871,2]
[394189069,1763365838489,-500.0,0.00016871,2]
[394189070,1763365838498,-500.0,0.00016871,2]
[394189071,1763365838508,-500.0,0.00016871,2]
[394189072,1763365838517,-500.0,0.00016871,2]
[394189073,1763365838526,-500.0,0.00016871,2]
[394189074,1763365838535,-500.0,0.00016871,2]
[394189075,1763365838544,-500.0,0.00016871,2]
[394189076,1763365838554,-500.0,0.00016871,2]
[394189077,1763365838563,-500.0,0.00016871,2]
[394189078,1763365838573,-500.0,0.00016871,2]
[394189079,1763365838582,-500.0,0.00016871,2]
[394189080,1763365838591,-500.0,0.00016871,2]
[394189081,1763365838601,-500.0,0.00016871,2]
[394189082,1763365838610,-500.0,0.00016871,2]
[394189083,1763365838620,-500.0,0.00016871,2]
[394189084,1763365838629,-650.0,0.00016871,2]
[394189085,1763365838639,-500.0,0.00016871,2]
[394189086,1763365838649,-500.0,0.00016871,2]
[394189087,1763365838662,-500.0,0.00016871,2]
[394189088,1763365838671,-500.0,0.00016871,2]
[394189089,1763365838680,-500.0,0.00016871,2]
[394189090,1763365838689,-500.0,0.00016871,2]
[394189091,1763365838699,-500.0,0.00016871,2]
[394189092,1763365838708,-500.0,0.00016871,2]
[394189093,1763365838718,-500.0,0.00016871,2]
[394189094,1763365838727,-500.0,0.00016871,2]
[394189095,1763365838736,-500.0,0.00016871,2]
[394189096,1763365838746,-596.20253021,0.00016871,2]
[394189097,1763365838756,-500.0,0.00016871,2]
[394189098,1763365838766,-500.0,0.00016871,2]
[394189099,1763365838775,-500.0,0.00016871,2]
[394189100,1763365838785,-500.0,0.00016871,2]
[394189101,1763365838794,-500.0,0.00016871,2]
[394189102,1763365838803,-500.0,0.00016871,2]
[394189103,1763365838812,-500.0,0.00016871,2]
[394189104,1763365838822,-500.0,0.00016871,2]
[394189105,1763365838831,-500.0,0.00016871,2]
[394189106,1763365838841,-500.0,0.00016871,2]
[394189107,1763365838851,-500.0,0.00016871,2]
[394189108,1763365838860,-500.0,0.00016871,2]
[394189109,1763365838870,-500.0,0.00016871,2]
[394189110,1763365838880,-500.0,0.00016871,2]
[394189111,1763365838890,-500.0,0.00016871,2]
[394189112,1763365838900,-500.0,0.00016871,2]
[394189113,1763365838910,-500.0,0.00016871,2]
[394189114,1763365838919,-500.0,0.00016871,2]
[394189115,1763365838929,-500.0,0.00016871,2]
[394189116,1763365838939,-500.0,0.00016871,2]
[394189117,1763365838949,-292.00923327,0.00016871,2]
[394189118,1763365838958,-500.0,0.00016871,2]
[394189119,1763365838968,-500.0,0.00016871,2]
[394189120,1763365838978,-500.0,0.00016871,2]
[394189121,1763365838987,-500.0,0.00016871,2]
[394189122,1763365838996,-500.0,0.00016871,2]
[394189123,1763365839006,-500.0,0.00016871,2]
[394189124,1763365839015,-500.0,0.00016871,2]
[394189125,1763365839025,-500.0,0.00016871,2]
[394189126,1763365839034,-500.0,0.00016871,2]
[394189127,1763365839044,-500.0,0.00016871,2]
[394189128,1763365839053,-500.0,0.00016871,2]
[394189129,1763365839063,-500.0,0.00016871,2]
[394189130,1763365839074,-500.0,0.00016871,2]
[394189131,1763365839086,-59314.8179063,0.00016872,2]
[394189132,1763365839099,-811590.88131608,0.00016872,2]
[394189133,1763365839108,-50000.0,0.00016971,2]
[394189134,1763365839118,-1200.0,0.00016971,2]
[394189135,1763365839128,-500.0,0.00016973,2]
[394189136,1763365839139,-502.26261043,0.00016973,2]
[394189137,1763365839149,-161.01806223,0.00016973,2]
[394189138,1763365839159,-500.0,0.00016973,2]
[394189139,1763365839168,-500.0,0.00016973,2]
[394189140,1763365839178,-500.0,0.00016973,2]
[394189141,1763365839188,-504.39729858,0.00016973,2]
[394189142,1763365839197,-502.8585748,0.00016973,2]
[394189143,1763365839206,-501.98604669,0.00016973,2]
[394189144,1763365839215,-518.08160207,0.00016973,2]
[394189145,1763365839224,-495.28841905,0.00016973,2]
[394189146,1763365839234,-500.0,0.00016973,2]
[394189147,1763365839243,-500.0,0.00016973,2]
[394189148,1763365839252,-488.03765742,0.00016973,2]
[394189149,1763365839263,-500.0,0.00016973,2]
[394189150,1763365839273,-325.78165932,0.00016973,2]
[394189151,1763365839283,-500.0,0.00016973,2]
[394189152,1763365839293,-502.5065032,0.00016973,2]
[394189153,1763365839303,-501.9597338,0.00016973,2]
[394189154,1763365839313,-441.96562617,0.00016973,2]
[394189155,1763365839323,-267.34034832,0.00016973,2]
[394189156,1763365839332,-500.0,0.00016973,2]
[394189157,1763365839342,-500.0,0.00016973,2]
[394189158,1763365839351,-500.0,0.00016973,2]
[394189159,1763365839360,-500.0,0.00016973,2]